bitfinex/quotes_SOLUSD_20250507
["timestamp","ask_amount","ask_price","bid_price","bid_amount"]
[1746649797857,34.01654102,146.19,146.16,82.5]
[1746649799455,10.07490884,146.18,146.16,82.5]
[1746649799957,6.8408811,146.18,146.16,82.5]
[1746649800261,6.8408811,146.18,146.17,10.07490884]
[1746649800568,6.8408811,146.18,146.16,92.57490884]
[1746649800971,6.84048931,146.19,146.17,10.07490884]
[1746649801473,6.84048931,146.19,146.18,10.07490884]
[1746649801664,6.84048931,146.19,146.18,92.57490884]
[1746649802172,6.84048931,146.19,146.18,82.5]
[1746649803674,6.83950526,146.21,146.18,92.57490884]
[1746649803860,6.83854202,146.23,146.2,10.07490884]
[1746649804061,6.83854202,146.23,146.21,10.07490884]
[1746649804358,6.83854202,146.23,146.2,92.57490884]
[1746649805477,23.93489707,146.23,146.2,82.5]
[1746649805687,10.07490884,146.22,146.2,82.5]
[1746649805887,15.73642649,146.21,146.2,82.5]
[1746649806181,22.57590395,146.21,146.2,82.5]
[1746649806379,41.22555281,146.21,146.2,82.5]
[1746649808788,58.32424646,146.21,146.18,82.5]
[1746649810307,15.73642649,146.2,146.18,82.5]
[1746649812293,6.84041316,146.19,146.18,82.5]
[1746649814288,6.83994528,146.2,146.18,82.5]
[1746649814985,22.57637177,146.2,146.18,82.5]
[1746649815990,34.38607535,146.19,146.18,82.5]
[1746649816203,15.73642649,146.19,146.18,82.5]
[1746649816372,41.22648851,146.19,146.18,82.5]
[1746649819798,22.57683965,146.19,146.18,82.5]
[1746649820095,41.22648851,146.19,146.18,82.5]
[1746649820780,58.32752141,146.19,146.14,82.5]
[1746649821003,15.73642649,146.18,146.14,98.23642649]
[1746649821376,15.73642649,146.16,146.14,82.5]
[1746649821577,42.59109492,146.19,146.14,82.5]
[1746649821578,15.73642649,146.17,146.14,82.5]
[1746649822794,6.84134911,146.17,146.14,98.23642649]
[1746649826294,22.5777756,146.17,146.14,82.5]
[1746649826683,39.68114838,146.17,146.14,82.5]
[1746649826889,15.73642649,146.15,146.14,82.5]
[1746649827398,31.89642649,146.16,146.14,82.5]
[1746649827598,6.84228532,146.15,146.14,82.5]
[1746649827977,6.84228532,146.15,146.14,98.23642649]
[1746649828296,6.84228532,146.15,146.14,82.5]
[1746649829393,22.57871181,146.15,146.14,82.5]
[1746649833506,18.64964886,146.14,146.1,82.5]
[1746649833705,15.73642649,146.13,146.1,82.5]
[1746649834878,23.94799862,146.15,146.1,98.23642649]
[1746649835083,39.68442511,146.15,146.11,15.73642649]
[1746649836383,39.68442511,146.15,146.1,98.23642649]
[1746649836583,15.73642649,146.14,146.1,98.23642649]
[1746649836780,15.73642649,146.13,146.1,82.5]
[1746649838411,6.84369011,146.12,146.1,82.5]
[1746649841629,22.5801166,146.12,146.1,82.5]
[1746649842121,6.84369011,146.12,146.1,82.5]
[1746649847325,6.84369011,146.12,146.1,98.23642649]
[1746649847552,6.84369011,146.12,146.11,15.73642649]
[1746649847735,6.84369011,146.12,146.11,98.23642649]
[1746649848025,23.94815778,146.15,146.11,98.23642649]
[1746649848527,15.73642649,146.14,146.11,82.5]
[1746649849230,39.68458427,146.15,146.11,82.5]
[1746649852932,39.68458427,146.15,146.11,98.23642649]
[1746649853132,6.84228532,146.15,146.13,15.73642649]
[1746649853430,6.84228532,146.15,146.14,15.73642649]
[1746649853725,23.00204653,146.16,146.14,15.73642649]
[1746649853940,16.16,146.16,146.15,15.73642649]
[1746649854141,34.38607535,146.21,146.16,82.5]
[1746649854142,22.99994528,146.2,146.16,82.5]
[1746649854310,22.99994528,146.2,146.18,15.73642649]
[1746649855324,22.99994528,146.2,146.19,15.73642649]
[1746649855514,22.99994528,146.2,146.19,98.23642649]
[1746649856339,22.99994528,146.2,146.19,82.5]
[1746649860840,22.99994528,146.2,146.19,98.23642649]
[1746649862566,22.99994528,146.2,146.19,82.5]
[1746649862840,57.38602063,146.2,146.19,82.5]
[1746649865111,38.73637177,146.2,146.19,82.5]
[1746649865434,57.38602063,146.2,146.19,82.5]
[1746649865625,57.38602063,146.2,146.16,82.5]
[1746649865824,57.38602063,146.2,146.16,98.23642649]
[1746649867326,22.99994528,146.2,146.17,15.73642649]
[1746649867636,22.99994528,146.2,146.19,15.73642649]
[1746649867937,16.16,146.2,146.19,98.23642649]
[1746649868537,22.99994528,146.2,146.19,82.5]
[1746649872450,22.99994528,146.2,146.19,98.23642649]
[1746649872745,22.99994528,146.2,146.19,82.5]
[1746649873432,22.99994528,146.2,146.19,98.23642649]
[1746649874322,22.99994528,146.2,146.19,82.5]
[1746649875320,16.16,146.2,146.19,234.73642649]
[1746649875527,6.83964241,146.21,146.19,234.73642649]
[1746649876048,6.83964241,146.21,146.2,15.73642649]
[1746649876343,6.83964241,146.21,146.19,234.73642649]
[1746649877748,6.83900971,146.22,146.19,234.73642649]
[1746649879246,23.93653398,146.22,146.19,234.73642649]
[1746649880154,23.93653398,146.22,146.2,15.73642649]
[1746649880654,23.93653398,146.22,146.2,98.23642649]
[1746649880952,23.93653398,146.22,146.2,82.5]
[1746649883156,6.83900971,146.22,146.21,15.73642649]
[1746649883452,22.97822419,146.24,146.22,82.5]
[1746649883750,22.97822419,146.24,146.22,219.0]
[1746649885556,22.97822419,146.24,146.22,234.73642649]
[1746649886025,22.97822419,146.24,146.22,219.0]
[1746649886429,38.71465068,146.24,146.22,219.0]
[1746649886662,34.38607535,146.23,146.22,82.5]
[1746649887035,22.97822419,146.24,146.22,82.5]
[1746649887352,15.73642649,146.23,146.22,82.5]
[1746649888654,41.22461737,146.23,146.22,82.5]
[1746649888826,18.64964886,146.22,146.17,82.5]
[1746649889030,15.73642649,146.18,146.17,82.5]
[1746649889957,15.73642649,146.18,146.14,98.23642649]
[1746649890861,6.84134911,146.17,146.14,98.23642649]
[1746649891243,22.57747288,146.18,146.15,15.73642649]
[1746649891445,6.84104639,146.18,146.15,15.73642649]
[1746649892578,16.14,146.19,146.16,15.73642649]
[1746649893861,22.98053504,146.19,146.16,15.73642649]
[1746649895147,38.71696153,146.19,146.15,15.73642649]
[1746649895342,38.71696153,146.19,146.14,82.5]
[1746649895343,15.73642649,146.17,146.14,82.5]
[1746649895662,15.73642649,146.16,146.14,82.5]
[1746649895832,15.73642649,146.15,146.14,82.5]
[1746649898171,22.57871181,146.15,146.14,82.5]
[1746649898861,6.84228532,146.15,146.14,82.5]
[1746649900871,22.57824367,146.16,146.14,82.5]
[1746649901265,6.84181718,146.16,146.14,98.23642649]
[1746649901593,6.84145498,146.17,146.15,15.73642649]
[1746649902754,6.8408811,146.18,146.14,98.23642649]
[1746649903372,57.87642649,146.19,146.14,98.23642649]
[1746649903373,22.98061721,146.19,146.16,15.73642649]
[1746649907685,22.98061721,146.19,146.16,98.23642649]
[1746649909281,16.14,146.19,146.17,15.73642649]
[1746649909577,6.83967897,146.21,146.18,15.73642649]
[1746649909755,22.97916914,146.22,146.2,15.73642649]
[1746649909957,22.97916914,146.22,146.2,82.5]
[1746649911402,16.14,146.22,146.21,15.73642649]
[1746649911565,16.14,146.22,146.21,98.23642649]
[1746649912686,22.97900971,146.22,146.21,98.23642649]
[1746649912984,16.14,146.22,146.21,98.23642649]
[1746649913179,26.0,146.25,146.21,98.23642649]
[1746649913478,6.83760683,146.25,146.23,15.73642649]
[1746649914090,6.83760683,146.25,146.22,15.73642649]
[1746649914272,6.83760683,146.25,146.21,219.0]
[1746649914466,6.83760683,146.25,146.21,234.73642649]
[1746649914782,22.57403332,146.25,146.21,234.73642649]
[1746649915191,39.66805041,146.25,146.21,234.73642649]
[1746649916394,39.66805041,146.25,146.21,219.0]
[1746649916583,39.66805041,146.25,146.21,234.73642649]
[1746649919693,39.66805041,146.25,146.21,98.23642649]
[1746649920996,23.93162392,146.25,146.21,98.23642649]
[1746649921184,39.66805041,146.25,146.21,98.23642649]
[1746649927006,15.73642649,146.24,146.21,82.5]
[1746649928307,22.57496851,146.23,146.21,82.5]
[1746649928495,15.73642649,146.22,146.21,82.5]
[1746649928692,34.38607535,146.22,146.18,82.5]
[1746649928892,15.73642649,146.19,146.18,82.5]
[1746649929406,15.73642649,146.2,146.18,82.5]
[1746649929902,6.84041316,146.19,146.18,82.5]
[1746649930082,22.57657206,146.2,146.18,82.5]
[1746649932112,6.84014557,146.2,146.18,82.5]
[1746649934112,22.97963271,146.21,146.18,98.23642649]
[1746649934296,22.97963271,146.21,146.19,15.73642649]
[1746649934604,22.97963271,146.21,146.18,98.23642649]
[1746649935905,22.97963271,146.21,146.18,82.5]
[1746649936988,22.97963271,146.21,146.18,98.23642649]
[1746649937705,22.97963271,146.21,146.18,234.73642649]
[1746649938005,22.97963271,146.21,146.18,219.0]
[1746649938215,38.7160592,146.21,146.18,219.0]
[1746649938412,15.73642649,146.19,146.18,219.0]
[1746649938612,34.38607535,146.19,146.18,82.5]
[1746649938795,6.84134911,146.17,146.13,219.0]
[1746649938981,15.73642649,146.15,146.13,82.5]
[1746649939310,15.73642649,146.14,146.13,82.5]
[1746649939883,34.38607535,146.15,146.13,82.5]
[1746649941010,6.84275352,146.14,146.13,82.5]
[1746649943018,22.57918001,146.14,146.13,82.5]
[1746649944197,18.64964886,146.13,146.09,82.5]
[1746649944515,15.73642649,146.11,146.09,82.5]
[1746649944896,15.73642649,146.12,146.09,82.5]
[1746649945092,6.84369011,146.12,146.09,82.5]
[1746649945593,6.84369011,146.12,146.09,98.23642649]
[1746649946119,6.84369011,146.12,146.09,82.5]
[1746649946120,22.5801166,146.12,146.09,82.5]
[1746649946413,15.73642649,146.1,146.09,82.5]
[1746649946622,34.38607535,146.1,146.09,82.5]
[1746649946914,18.79181043,146.09,146.05,82.5]
[1746649947101,15.73642649,146.06,146.05,82.5]
[1746649947287,22.58292792,146.06,146.05,82.5]
[1746649948194,57.37257678,146.06,146.05,82.5]
[1746649951618,41.63615029,146.06,146.05,82.5]
[1746649951923,22.98650143,146.06,146.05,82.5]
[1746649959125,38.72292792,146.06,146.05,82.5]
[1746649966434,16.14,146.06,146.05,82.5]
[1746649966635,6.84509548,146.09,146.05,234.73642649]
[1746649966829,6.84509548,146.09,146.07,15.73642649]
[1746649967942,22.98483406,146.1,146.07,15.73642649]
[1746649968736,16.14,146.1,146.09,15.73642649]
[1746649968911,16.14,146.1,146.09,98.23642649]
[1746649969340,22.98462696,146.1,146.09,82.5]
[1746649973448,17.10675211,146.15,146.1,82.5]
[1746649973627,17.10675211,146.15,146.11,15.73642649]
[1746649973833,6.84275352,146.14,146.1,234.73642649]
[1746649974031,6.84275352,146.14,146.11,15.73642649]
[1746649976657,6.84275352,146.14,146.11,234.73642649]
[1746649977953,6.84228532,146.15,146.11,234.73642649]
[1746649978142,6.84228532,146.15,146.14,15.73642649]
[1746649978343,6.84228532,146.15,146.14,98.23642649]
[1746649978551,6.84228532,146.15,146.14,82.5]
[1746649982731,41.22836067,146.15,146.14,82.5]
[1746649983153,41.37052224,146.15,146.14,82.5]
[1746649984842,0.14216157,146.13,146.08,82.5]
[1746649985043,15.73642649,146.1,146.08,82.5]
[1746649987377,22.58152197,146.09,146.08,82.5]
[1746649988060,6.84509548,146.09,146.08,82.5]
[1746649988357,6.84509548,146.09,146.08,98.23642649]
[1746649988560,6.84509548,146.09,146.08,82.5]
[1746649992371,6.84484008,146.1,146.08,98.23642649]
[1746649992558,6.84484008,146.1,146.08,82.5]
[1746649994743,6.84484008,146.1,146.08,234.73642649]
[1746649995068,6.84484008,146.1,146.08,219.0]
[1746649995567,6.84484008,146.1,146.08,234.73642649]
[1746649996143,6.84484008,146.1,146.08,219.0]
[1746649998352,22.58126657,146.1,146.08,219.0]
[1746649998554,15.73642649,146.09,146.08,219.0]
[1746649998866,22.58126657,146.1,146.08,219.0]
[1746649999752,15.73642649,146.09,146.08,219.0]
[1746650000669,15.73642649,146.09,146.08,82.5]
[1746650001260,18.64964886,146.08,146.05,82.5]
[1746650001445,15.73642649,146.07,146.05,82.5]
[1746650001646,15.73642649,146.06,146.05,82.5]
[1746650002273,22.58245921,146.07,146.05,82.5]
[1746650004177,15.73642649,146.06,146.05,82.5]
[1746650004375,50.52607535,146.06,146.01,98.23642649]
[1746650004546,15.73642649,146.04,146.01,82.5]
[1746650005950,6.84790796,146.03,146.01,82.5]
[1746650011270,6.84790796,146.03,146.01,98.23642649]
[1746650011482,6.84790796,146.03,146.02,15.73642649]
[1746650012271,6.84790796,146.03,146.01,98.23642649]
[1746650012469,22.58386554,146.04,146.01,82.5]
[1746650012971,6.84743905,146.04,146.01,98.23642649]
[1746650013167,6.84743905,146.04,146.03,15.73642649]
[1746650013480,6.84743905,146.04,146.02,15.73642649]
[1746650015170,32.84716065,146.05,146.03,15.73642649]
[1746650015365,32.84716065,146.05,146.04,15.73642649]
[1746650015569,32.84716065,146.05,146.04,98.23642649]
[1746650015887,6.84716065,146.05,146.04,98.23642649]
[1746650016059,22.98650672,146.06,146.04,234.73642649]
[1746650016260,22.98650672,146.06,146.05,15.73642649]
[1746650016468,22.98650672,146.06,146.04,234.73642649]
[1746650017571,6.84650672,146.06,146.04,234.73642649]
[1746650017888,6.84650672,146.06,146.05,15.73642649]
[1746650018093,6.84622789,146.07,146.05,15.73642649]
[1746650019389,6.84622789,146.07,146.04,234.73642649]
[1746650019584,39.69773619,146.07,146.04,82.5]
[1746650019759,15.73642649,146.05,146.04,82.5]
[1746650019959,15.73642649,146.06,146.04,82.5]
[1746650020216,39.69773619,146.07,146.04,82.5]
[1746650020390,23.9613097,146.07,146.04,98.23642649]
[1746650020689,39.69773619,146.07,146.04,82.5]
[1746650021271,6.84622789,146.07,146.04,98.23642649]
[1746650022198,6.84622789,146.07,146.04,82.5]
[1746650022497,15.73642649,146.06,146.04,82.5]
[1746650023587,6.84697021,146.05,146.04,82.5]
[1746650027206,6.84650143,146.06,146.04,82.5]
[1746650028578,15.73642649,146.05,146.04,82.5]
[1746650028967,31.89642649,146.05,146.04,82.5]
[1746650029500,57.39304556,146.05,146.04,82.5]
[1746650030696,57.39304556,146.05,146.02,15.73642649]
[1746650031189,41.65661907,146.05,146.02,15.73642649]
[1746650031397,57.39304556,146.05,146.01,98.23642649]
[1746650031794,74.51047109,146.05,146.01,98.23642649]
[1746650032003,58.7740446,146.05,146.02,15.73642649]
[1746650032178,40.12439574,146.05,146.02,15.73642649]
[1746650034401,23.00697021,146.05,146.03,15.73642649]
[1746650034606,23.00697021,146.05,146.04,15.73642649]
[1746650034790,23.00697021,146.05,146.04,98.23642649]
[1746650035191,23.00697021,146.05,146.04,82.5]
[1746650041607,6.84697021,146.05,146.04,82.5]
[1746650042725,6.84650143,146.06,146.04,82.5]
[1746650043399,6.84650143,146.06,146.05,15.73642649]
[1746650043798,22.98603683,146.07,146.05,98.23642649]
[1746650044204,22.98603683,146.07,146.05,82.5]
[1746650044510,38.72246332,146.07,146.05,82.5]
[1746650044897,22.98603683,146.07,146.05,82.5]
[1746650046011,22.98603683,146.07,146.05,98.23642649]
[1746650046216,22.98603683,146.07,146.05,82.5]
[1746650055034,38.72246332,146.07,146.05,82.5]
[1746650055212,15.73642649,146.06,146.05,82.5]
[1746650055934,34.38607535,146.06,146.05,82.5]
[1746650056136,34.52823692,146.06,146.05,82.5]
[1746650056308,41.37473835,146.06,146.05,82.5]
[1746650057927,25.49615029,146.06,146.05,82.5]
[1746650058116,6.84650143,146.06,146.05,82.5]
[1746650058318,22.58292792,146.06,146.05,82.5]
[1746650061235,6.84650143,146.06,146.05,82.5]
[1746650065531,22.98623408,146.07,146.05,98.23642649]
[1746650065722,22.98623408,146.07,146.06,15.73642649]
[1746650066629,16.14,146.07,146.06,234.73642649]
[1746650066807,16.22,146.11,146.07,82.5]
[1746650067014,23.06432348,146.11,146.1,15.73642649]
[1746650067214,23.06432348,146.11,146.1,98.23642649]
[1746650067518,16.22,146.11,146.1,98.23642649]
[1746650067915,6.84275352,146.14,146.1,234.73642649]
[1746650068121,6.84275352,146.14,146.13,15.73642649]
[1746650068446,16.22,146.18,146.13,98.23642649]
[1746650068643,16.22,146.18,146.15,15.73642649]
[1746650069919,23.0608811,146.18,146.15,15.73642649]
[1746650070841,40.16308386,146.18,146.15,15.73642649]
[1746650071537,55.89951035,146.18,146.13,219.0]
[1746650071758,15.73642649,146.15,146.13,219.0]
[1746650071923,15.73642649,146.14,146.13,82.5]
[1746650072723,22.57918001,146.14,146.13,82.5]
[1746650074352,6.84275352,146.14,146.13,82.5]
[1746650076821,22.57918001,146.14,146.13,82.5]
[1746650077546,39.68606382,146.14,146.1,82.5]
[1746650077743,15.73642649,146.13,146.1,82.5]
[1746650077944,15.73642649,146.12,146.1,82.5]
[1746650080155,6.84415851,146.11,146.1,82.5]
[1746650084657,6.84369011,146.12,146.1,82.5]
[1746650085527,6.84369011,146.12,146.1,98.23642649]
[1746650086656,6.84369011,146.12,146.11,15.73642649]
[1746650087432,6.84369011,146.12,146.1,98.23642649]
[1746650088559,6.84369011,146.12,146.11,15.73642649]
[1746650090051,17.10464135,146.16,146.13,59.43656872]
[1746650090266,17.10464135,146.16,146.15,15.73642649]
[1746650090738,16.22,146.17,146.15,15.73642649]
[1746650091436,6.84181718,146.16,146.15,15.73642649]
[1746650093855,6.84181718,146.16,146.15,75.17299521]
[1746650098866,17.10234606,146.18,146.15,75.17299521]
[1746650099064,6.84041316,146.19,146.17,15.73642649]
[1746650099271,6.84041316,146.19,146.18,15.73642649]
[1746650099438,6.84009177,146.2,146.18,195.93656872]
[1746650099760,6.84009177,146.2,146.19,15.73642649]
[1746650100460,16.24,146.21,146.19,211.67299521]
[1746650100649,6.83900971,146.22,146.2,15.73642649]
[1746650100849,6.83900971,146.22,146.21,15.73642649]
[1746650101161,6.83807439,146.24,146.21,15.73642649]
[1746650101454,6.83807439,146.24,146.22,15.73642649]
[1746650101667,6.83807439,146.24,146.23,15.73642649]
[1746650101867,6.83807439,146.24,146.23,75.17299521]
[1746650102346,6.83807439,146.24,146.23,59.43656872]
[1746650103440,6.83807439,146.24,146.23,75.17299521]
[1746650104572,6.83807439,146.24,146.23,59.43656872]
[1746650105368,6.83807439,146.24,146.23,75.17299521]
[1746650107856,6.83713934,146.26,146.24,59.43656872]
[1746650108055,6.83620453,146.28,146.25,15.73642649]
[1746650108263,6.83620453,146.28,146.27,15.73642649]
[1746650108763,6.83620453,146.28,146.26,15.73642649]
[1746650110575,23.92551066,146.29,146.25,211.67299521]
[1746650110779,39.66193715,146.29,146.25,211.67299521]
[1746650111771,15.73642649,146.28,146.25,59.43656872]
[1746650113873,6.8366719,146.27,146.25,75.17299521]
[1746650116679,6.83620453,146.28,146.25,75.17299521]
[1746650118079,6.83620453,146.28,146.26,15.73642649]
[1746650118454,6.83620453,146.28,146.27,15.73642649]
[1746650119180,6.83573723,146.29,146.26,15.73642649]
[1746650119669,23.07529665,146.3,146.28,15.73642649]
[1746650119877,23.07529665,146.3,146.29,15.73642649]
[1746650120255,6.83529665,146.3,146.29,15.73642649]
[1746650120456,6.8343357,146.32,146.29,15.73642649]
[1746650121269,23.91872887,146.33,146.29,15.73642649]
[1746650121572,23.91872887,146.33,146.29,211.67299521]
[1746650122159,23.91872887,146.33,146.3,15.73642649]
[1746650122557,6.83386865,146.33,146.31,15.73642649]
[1746650123171,6.83386865,146.33,146.3,75.17299521]
[1746650123373,22.57029514,146.33,146.3,59.43656872]
[1746650123876,15.73642649,146.32,146.3,59.43656872]
[1746650124261,15.73642649,146.31,146.3,59.43656872]
[1746650125295,22.5712293,146.31,146.3,59.43656872]
[1746650125958,41.22087816,146.31,146.3,59.43656872]
[1746650126164,18.64964886,146.3,146.27,59.43656872]
[1746650126363,15.73642649,146.28,146.27,59.43656872]
[1746650127379,22.57263102,146.28,146.27,59.43656872]
[1746650134083,41.22227988,146.28,146.27,59.43656872]
[1746650134381,41.36444145,146.28,146.23,59.43656872]
[1746650134679,15.73642649,146.26,146.23,59.43656872]
[1746650135059,15.73642649,146.25,146.23,59.43656872]
[1746650135481,15.73642649,146.24,146.23,59.43656872]
[1746650135882,15.73642649,146.26,146.23,59.43656872]
[1746650137687,6.83760683,146.25,146.23,59.43656872]
[1746650137873,6.83760683,146.25,146.23,75.17299521]
[1746650138875,6.83638173,146.28,146.25,59.43656872]
[1746650139081,23.05592144,146.29,146.27,15.73642649]
[1746650139388,6.83547619,146.3,146.28,15.73642649]
[1746650139563,6.83547619,146.3,146.29,15.73642649]
[1746650140258,39.65660144,146.32,146.28,211.67299521]
[1746650140479,39.65660144,146.32,146.28,75.17299521]
[1746650141789,49.06603961,146.32,146.28,84.58243338]
[1746650141983,23.92017495,146.32,146.29,25.14586466]
[1746650143497,49.06603961,146.32,146.28,59.43656872]
[1746650143687,49.06603961,146.32,146.28,84.58243338]
[1746650146873,23.92017495,146.32,146.28,84.58243338]
[1746650147079,49.06603961,146.32,146.28,84.58243338]
[1746650150197,31.98113465,146.3,146.28,59.43656872]
[1746650151097,6.83526999,146.3,146.28,59.43656872]
[1746650153801,31.98113465,146.3,146.28,59.43656872]
[1746650154898,6.83526999,146.3,146.28,59.43656872]
[1746650158883,6.83526999,146.3,146.28,84.58243338]
[1746650159506,23.92180984,146.31,146.28,84.58243338]
[1746650161015,49.0676745,146.31,146.28,59.43656872]
[1746650163807,32.80472609,146.31,146.28,59.43656872]
[1746650164111,15.71771906,146.3,146.28,59.43656872]
[1746650164609,17.08700703,146.31,146.28,59.43656872]
[1746650164786,15.71771906,146.3,146.28,59.43656872]
[1746650165608,15.71771906,146.29,146.28,59.43656872]
[1746650165911,22.55345629,146.29,146.28,59.43656872]
[1746650168611,55.82279937,146.29,146.24,152.21771906]
[1746650168815,15.71771906,146.28,146.24,234.71771906]
[1746650169596,15.71771906,146.27,146.24,219.0]
[1746650169910,15.71771906,146.27,146.24,82.5]
[1746650170917,6.83713934,146.26,146.24,82.5]
[1746650171915,6.83713934,146.26,146.24,98.21771906]
[1746650173214,23.9287593,146.27,146.24,98.21771906]
[1746650177428,6.8366719,146.27,146.25,15.71771906]
[1746650177719,6.8366719,146.27,146.26,15.71771906]
[1746650178104,6.83620453,146.28,146.26,15.71771906]
[1746650178318,6.83620453,146.28,146.27,15.71771906]
[1746650178513,6.83620453,146.28,146.27,98.21771906]
[1746650179508,23.01585275,146.29,146.27,234.71771906]
[1746650179813,6.83480281,146.31,146.28,15.71771906]
[1746650180004,23.92029855,146.32,146.28,219.0]
[1746650180324,15.71771906,146.29,146.28,82.5]
[1746650180699,15.71771906,146.29,146.24,219.0]
[1746650180926,15.71771906,146.27,146.24,219.0]
[1746650181503,15.71771906,146.26,146.24,219.0]
[1746650181722,15.71771906,146.26,146.24,82.5]
[1746650183626,6.83760683,146.25,146.24,82.5]
[1746650185730,6.83713934,146.26,146.24,82.5]
[1746650188026,6.83713934,146.26,146.24,98.21771906]
[1746650189415,23.92869941,146.27,146.24,98.21771906]
[1746650192436,23.92869941,146.27,146.24,82.5]
[1746650193934,39.64641847,146.27,146.24,82.5]
[1746650195417,23.92869941,146.27,146.24,98.21771906]
[1746650196527,39.64641847,146.27,146.24,82.5]
[1746650203041,23.92869941,146.27,146.24,98.21771906]
[1746650204120,23.92869941,146.27,146.24,82.5]
[1746650204947,23.92869941,146.27,146.24,98.21771906]
[1746650206240,23.92869941,146.27,146.24,82.5]
[1746650209045,23.92869941,146.27,146.24,98.21771906]
[1746650214053,23.92869941,146.27,146.24,82.5]
[1746650215252,6.8366719,146.27,146.24,98.21771906]
[1746650215444,6.83573723,146.29,146.26,15.71771906]
[1746650215624,6.83573723,146.29,146.28,15.71771906]
[1746650216655,6.83526999,146.3,146.28,15.71771906]
[1746650217551,6.83526999,146.3,146.29,15.71771906]
[1746650217767,6.83386865,146.33,146.29,234.71771906]
[1746650217932,6.83386865,146.33,146.31,15.71771906]
[1746650220067,6.83386865,146.33,146.32,15.71771906]
[1746650220235,6.83386865,146.33,146.32,82.5]
[1746650224964,22.55158771,146.33,146.32,82.5]
[1746650225458,18.64964886,146.32,146.29,82.5]
[1746650225647,15.71771906,146.3,146.29,82.5]
[1746650226042,22.55298905,146.3,146.29,82.5]
[1746650228751,6.83526999,146.3,146.29,82.5]
[1746650229246,6.83494363,146.31,146.29,98.21771906]
[1746650230149,39.63625934,146.33,146.29,98.21771906]
[1746650231664,39.63625934,146.33,146.29,234.71771906]
[1746650231867,15.71771906,146.32,146.29,219.0]
[1746650232365,22.55252187,146.31,146.29,219.0]
[1746650234475,15.71771906,146.3,146.29,219.0]
[1746650234776,15.71771906,146.3,146.26,82.5]
[1746650234937,15.71771906,146.29,146.26,82.5]
[1746650236558,6.83620453,146.28,146.26,82.5]
[1746650238662,22.55392359,146.28,146.26,82.5]
[1746650238856,15.71771906,146.27,146.24,82.5]
[1746650239060,15.71771906,146.26,146.24,82.5]
[1746650240261,15.71771906,146.25,146.24,82.5]
[1746650240580,6.83807439,146.24,146.22,82.5]
[1746650240748,22.55579345,146.24,146.22,82.5]
[1746650247269,15.71771906,146.23,146.22,82.5]
[1746650247473,18.64964886,146.22,146.18,82.5]
[1746650247679,15.71771906,146.19,146.18,82.5]
[1746650248676,15.71771906,146.2,146.18,82.5]
[1746650249384,18.64964886,146.18,146.15,82.5]
[1746650249572,15.71771906,146.16,146.15,82.5]
[1746650250786,22.55953624,146.16,146.15,82.5]
[1746650250986,58.31372806,146.16,146.12,82.5]
[1746650251288,15.71771906,146.14,146.12,82.5]
[1746650251981,22.56094084,146.13,146.12,82.5]
[1746650252181,18.64964886,146.12,146.06,84.0493]
[1746650252383,15.71771906,146.1,146.06,84.0493]
[1746650252908,15.71771906,146.09,146.06,82.5]
[1746650253277,15.71771906,146.07,146.05,82.5]
[1746650254379,22.56417917,146.07,146.05,82.5]
[1746650254587,6.84646011,146.07,146.05,82.5]
[1746650255067,22.56417917,146.07,146.05,82.5]
[1746650255676,6.84646011,146.07,146.05,82.5]
[1746650256372,22.56417917,146.07,146.05,82.5]
[1746650258778,22.56417917,146.07,146.03,15.71771906]
[1746650258979,22.56417917,146.07,146.03,98.21771906]
[1746650259278,15.71771906,146.05,146.03,82.5]
[1746650259878,15.71771906,146.06,146.03,82.5]
[1746650261367,6.84694046,146.06,146.03,98.21771906]
[1746650261687,6.84621006,146.07,146.04,15.71771906]
[1746650261979,16.16,146.09,146.06,15.71771906]
[1746650262177,16.16,146.09,146.08,15.71771906]
[1746650262684,6.84415851,146.11,146.07,15.71771906]
[1746650262883,6.84415851,146.11,146.07,98.21771906]
[1746650263366,22.56187757,146.11,146.07,98.21771906]
[1746650263569,6.84386221,146.12,146.09,15.71771906]
[1746650264480,22.56158127,146.12,146.08,15.71771906]
[1746650266203,22.56158127,146.12,146.07,219.0]
[1746650266401,15.71771906,146.1,146.07,219.0]
[1746650267398,6.84509548,146.09,146.07,219.0]
[1746650267570,6.84509548,146.09,146.07,82.5]
[1746650268292,6.84415851,146.11,146.07,98.21771906]